{"text_format":"1","workbook":"xlsx","n_sheets":6,"sheets":["Easy_Mul","Easy_Add","Easy_Sub","Add Neg","Sub Neg","Mul Neg"],"not_rendered":{"charts":0,"images":0,"macros":1,"external_links":0,"defined_names":6,"comments":0,"pivot_tables":0},"unopened":[],"bounds":{"document_bytes":16777216,"sheet_cells":100000,"rows_first":2000,"rows_last":500,"rows_between":2000,"halvings":0,"cell_chars":16384,"cell_head_chars":4096},"cells_cut":0,"cells_raw":0,"read":"whole","date_system":"1900"}

{"sheet":"Easy_Mul","index":0,"n_rows":45,"n_cols":34,"rows_kept":45,"cut":false,"hidden":false,"merged":[[40,9,41,10],[40,17,41,18],[44,5,45,6],[44,13,45,14],[44,21,45,22],[1,1,2,27],[8,13,9,14],[12,9,13,10],[36,13,37,14],[16,5,17,6],[12,17,13,18],[16,21,17,22],[16,13,17,14],[22,13,23,14],[26,9,27,10],[26,17,27,18],[30,5,31,6],[30,13,31,14],[30,21,31,22]]}
[]
[null,"Triangle Puzzles (Level 2/3)"]
[]
[]
[null,"The corner values multiply to give the centre value."]
[]
[null,"Can you complete the triangles."]
[]
[null,null,null,null,null,null,null,null,null,null,null,null,null,{"$f":"AG9","v":11},null,null,null,null,null,null,null,null,null,null,null,null,null,null,null,null,null,null,{"$f":"ROUND(RAND()*(13-5)+5,0)","v":11}]
[null,null,null,null,null,null,null,null,null,null,null,null,null,null,null,null,null,null,null,null,null,null,null,null,null,null,null,null,null,null,null,null,{"$f":"ROUND(RAND()*(13-2)+2,0)","v":12},{"$f":"AG9*AG11","v":33}]
[null,null,null,null,null,null,null,null,null,null,null,null,null,null,null,null,null,null,null,null,null,null,null,null,null,null,null,null,null,null,null,null,{"$f":"ROUND(RAND()*(13-3)+3,0)","v":3},{"$f":"AG10*AG11","v":36}]
[null,null,null,null,null,null,null,null,null,null,null,null,null,null,null,null,null,null,null,null,null,null,null,null,null,null,null,null,null,null,null,null,null,{"$f":"AG9*AG10","v":132}]
[]
[]
[]
[]
[null,null,null,null,null,{"$f":"AG10","v":12},null,null,null,null,null,null,null,null,null,null,null,null,null,null,null,{"$f":"AG11","v":3}]
[]
[]
[]
[]
[]
[null,null,null,null,null,null,null,null,null,null,null,null,null,null,null,null,null,null,null,null,null,null,null,null,null,null,null,null,null,null,null,null,{"$f":"ROUND(RAND()*(13-5)+5,0)","v":12}]
[null,null,null,null,null,null,null,null,null,null,null,null,null,null,null,null,null,null,null,null,null,null,null,null,null,null,null,null,null,null,null,null,{"$f":"ROUND(RAND()*(13-2)+2,0)","v":6},{"$f":"AG23*AG25","v":48}]
[null,null,null,null,null,null,null,null,null,null,null,null,null,null,null,null,null,null,null,null,null,null,null,null,null,null,null,null,null,null,null,null,{"$f":"ROUND(RAND()*(13-3)+3,0)","v":4},{"$f":"AG24*AG25","v":24}]
[null,null,null,null,null,null,null,null,null,null,null,null,null,null,null,null,null,null,null,null,null,null,null,null,null,null,null,null,null,null,null,null,null,{"$f":"AG23*AG24","v":72}]
[null,null,null,null,null,null,null,null,null,{"$f":"AH26","v":72},null,null,null,null,null,null,null,{"$f":"AH24","v":48}]
[]
[]
[]
[null,null,null,null,null,{"$f":"AG24","v":6}]
[]
[]
[]
[]
[]
[null,null,null,null,null,null,null,null,null,null,null,null,null,null,null,null,null,null,null,null,null,null,null,null,null,null,null,null,null,null,null,null,{"$f":"ROUND(RAND()*(13-5)+5,0)","v":12}]
[null,null,null,null,null,null,null,null,null,null,null,null,null,null,null,null,null,null,null,null,null,null,null,null,null,null,null,null,null,null,null,null,{"$f":"ROUND(RAND()*(13-2)+2,0)","v":4},{"$f":"AG37*AG39","v":72}]
[null,null,null,null,null,null,null,null,null,null,null,null,null,null,null,null,null,null,null,null,null,null,null,null,null,null,null,null,null,null,null,null,{"$f":"ROUND(RAND()*(13-3)+3,0)","v":6},{"$f":"AG38*AG39","v":24}]
[null,null,null,null,null,null,null,null,null,null,null,null,null,null,null,null,null,null,null,null,null,null,null,null,null,null,null,null,null,null,null,null,null,{"$f":"AG38*AG37","v":48}]
[null,null,null,null,null,null,null,null,null,{"$f":"AH40","v":48},null,null,null,null,null,null,null,{"$f":"AH38","v":72}]
[]
[]
[]
[null,null,null,null,null,null,null,null,null,null,null,null,null,{"$f":"AH39","v":24}]

{"sheet":"Easy_Add","index":1,"n_rows":45,"n_cols":34,"rows_kept":45,"cut":false,"hidden":false,"merged":[[44,21,45,22],[22,13,23,14],[26,9,27,10],[26,17,27,18],[30,5,31,6],[30,13,31,14],[30,21,31,22],[36,13,37,14],[40,9,41,10],[40,17,41,18],[44,5,45,6],[44,13,45,14],[1,1,2,27],[8,13,9,14],[12,9,13,10],[12,17,13,18],[16,5,17,6],[16,13,17,14],[16,21,17,22]]}
[]
[null,"Triangle Puzzles (Level 2/3)"]
[]
[]
[null,"The corner values add to give the centre value."]
[]
[null,"Can you complete the triangles."]
[]
[null,null,null,null,null,null,null,null,null,null,null,null,null,{"$f":"AG9","v":30},null,null,null,null,null,null,null,null,null,null,null,null,null,null,null,null,null,null,{"$f":"ROUND(RAND()*(50-11)+11,0)","v":30}]
[null,null,null,null,null,null,null,null,null,null,null,null,null,null,null,null,null,null,null,null,null,null,null,null,null,null,null,null,null,null,null,null,{"$f":"ROUND(RAND()*(50-11)+11,0)","v":33},{"$f":"AG9+AG11","v":54}]
[null,null,null,null,null,null,null,null,null,null,null,null,null,null,null,null,null,null,null,null,null,null,null,null,null,null,null,null,null,null,null,null,24,{"$f":"AG10+AG11","v":57}]
[null,null,null,null,null,null,null,null,null,null,null,null,null,null,null,null,null,null,null,null,null,null,null,null,null,null,null,null,null,null,null,null,null,{"$f":"AG9+AG10","v":63}]
[]
[]
[]
[]
[null,null,null,null,null,{"$f":"AG10","v":33},null,null,null,null,null,null,null,null,null,null,null,null,null,null,null,{"$f":"AG11","v":24}]
[]
[]
[]
[]
[]
[null,null,null,null,null,null,null,null,null,null,null,null,null,null,null,null,null,null,null,null,null,null,null,null,null,null,null,null,null,null,null,null,{"$f":"ROUND(RAND()*(50-11)+11,0)","v":28}]
[null,null,null,null,null,null,null,null,null,null,null,null,null,null,null,null,null,null,null,null,null,null,null,null,null,null,null,null,null,null,null,null,{"$f":"ROUND(RAND()*(50-11)+11,0)","v":40},{"$f":"AG23+AG25","v":46}]
[null,null,null,null,null,null,null,null,null,null,null,null,null,null,null,null,null,null,null,null,null,null,null,null,null,null,null,null,null,null,null,null,18,{"$f":"AG24+AG25","v":58}]
[null,null,null,null,null,null,null,null,null,null,null,null,null,null,null,null,null,null,null,null,null,null,null,null,null,null,null,null,null,null,null,null,null,{"$f":"AG23+AG24","v":68}]
[null,null,null,null,null,null,null,null,null,{"$f":"AH26","v":68},null,null,null,null,null,null,null,{"$f":"AH24","v":46}]
[]
[]
[]
[null,null,null,null,null,{"$f":"AG24","v":40}]
[]
[]
[]
[]
[]
[null,null,null,null,null,null,null,null,null,null,null,null,null,null,null,null,null,null,null,null,null,null,null,null,null,null,null,null,null,null,null,null,{"$f":"ROUND(RAND()*(13-5)+5,0)","v":9}]
[null,null,null,null,null,null,null,null,null,null,null,null,null,null,null,null,null,null,null,null,null,null,null,null,null,null,null,null,null,null,null,null,{"$f":"ROUND(RAND()*(13-2)+2,0)","v":8},{"$f":"AG37+AG39","v":19}]
[null,null,null,null,null,null,null,null,null,null,null,null,null,null,null,null,null,null,null,null,null,null,null,null,null,null,null,null,null,null,null,null,{"$f":"ROUND(RAND()*(13-3)+3,0)","v":10},{"$f":"AG38+AG39","v":18}]
[null,null,null,null,null,null,null,null,null,null,null,null,null,null,null,null,null,null,null,null,null,null,null,null,null,null,null,null,null,null,null,null,null,{"$f":"AG38+AG37","v":17}]
[null,null,null,null,null,null,null,null,null,{"$f":"AH40","v":17},null,null,null,null,null,null,null,{"$f":"AH38","v":19}]
[]
[]
[]
[null,null,null,null,null,null,null,null,null,null,null,null,null,{"$f":"AH39","v":18}]

{"sheet":"Easy_Sub","index":2,"n_rows":45,"n_cols":34,"rows_kept":45,"cut":false,"hidden":false,"merged":[[44,21,45,22],[22,13,23,14],[26,9,27,10],[26,17,27,18],[30,5,31,6],[30,13,31,14],[30,21,31,22],[36,13,37,14],[40,9,41,10],[40,17,41,18],[44,5,45,6],[44,13,45,14],[1,1,2,27],[8,13,9,14],[12,9,13,10],[12,17,13,18],[16,5,17,6],[16,13,17,14],[16,21,17,22]]}
[]
[null,"Triangle Puzzles (Level 2/3)"]
[]
[]
[null,"The corner values subtract to give the centre value."]
[]
[null,"Can you complete the triangles."]
[]
[null,null,null,null,null,null,null,null,null,null,null,null,null,{"$f":"AG9","v":15},null,null,null,null,null,null,null,null,null,null,null,null,null,null,null,null,null,null,{"$f":"ROUND(RAND()*(50-11)+11,0)","v":15}]
[null,null,null,null,null,null,null,null,null,null,null,null,null,null,null,null,null,null,null,null,null,null,null,null,null,null,null,null,null,null,null,null,{"$f":"ROUND(RAND()*(50-11)+11,0)","v":33},{"$f":"AG9-AG11","v":-34}]
[null,null,null,null,null,null,null,null,null,null,null,null,null,null,null,null,null,null,null,null,null,null,null,null,null,null,null,null,null,null,null,null,49,{"$f":"AG10-AG11","v":-16}]
[null,null,null,null,null,null,null,null,null,null,null,null,null,null,null,null,null,null,null,null,null,null,null,null,null,null,null,null,null,null,null,null,null,{"$f":"AG9-AG10","v":-18}]
[]
[]
[]
[]
[null,null,null,null,null,{"$f":"AG10","v":33},null,null,null,null,null,null,null,null,null,null,null,null,null,null,null,{"$f":"AG11","v":49}]
[]
[]
[]
[]
[]
[null,null,null,null,null,null,null,null,null,null,null,null,null,null,null,null,null,null,null,null,null,null,null,null,null,null,null,null,null,null,null,null,{"$f":"ROUND(RAND()*(50-11)+11,0)","v":43}]
[null,null,null,null,null,null,null,null,null,null,null,null,null,null,null,null,null,null,null,null,null,null,null,null,null,null,null,null,null,null,null,null,{"$f":"ROUND(RAND()*(50-11)+11,0)","v":17},{"$f":"AG23-AG25","v":11}]
[null,null,null,null,null,null,null,null,null,null,null,null,null,null,null,null,null,null,null,null,null,null,null,null,null,null,null,null,null,null,null,null,32,{"$f":"AG24-AG25","v":-15}]
[null,null,null,null,null,null,null,null,null,null,null,null,null,null,null,null,null,null,null,null,null,null,null,null,null,null,null,null,null,null,null,null,null,{"$f":"AG23-AG24","v":26}]
[null,null,null,null,null,null,null,null,null,{"$f":"AH26","v":26},null,null,null,null,null,null,null,{"$f":"AH24","v":11}]
[]
[]
[]
[null,null,null,null,null,{"$f":"AG24","v":17}]
[]
[]
[]
[]
[]
[null,null,null,null,null,null,null,null,null,null,null,null,null,null,null,null,null,null,null,null,null,null,null,null,null,null,null,null,null,null,null,null,{"$f":"ROUND(RAND()*(50-11)+11,0)","v":26}]
[null,null,null,null,null,null,null,null,null,null,null,null,null,null,null,null,null,null,null,null,null,null,null,null,null,null,null,null,null,null,null,null,{"$f":"ROUND(RAND()*(50-11)+11,0)","v":33},{"$f":"AG37-AG39","v":-8}]
[null,null,null,null,null,null,null,null,null,null,null,null,null,null,null,null,null,null,null,null,null,null,null,null,null,null,null,null,null,null,null,null,34,{"$f":"AG38-AG39","v":-1}]
[null,null,null,null,null,null,null,null,null,null,null,null,null,null,null,null,null,null,null,null,null,null,null,null,null,null,null,null,null,null,null,null,null,{"$f":"AG38-AG37","v":7}]
[null,null,null,null,null,null,null,null,null,{"$f":"AH40","v":7},null,null,null,null,null,null,null,{"$f":"AH38","v":-8}]
[]
[]
[]
[null,null,null,null,null,null,null,null,null,null,null,null,null,{"$f":"AH39","v":-1}]

{"sheet":"Add Neg","index":3,"n_rows":45,"n_cols":34,"rows_kept":45,"cut":false,"hidden":false,"merged":[[44,21,45,22],[22,13,23,14],[26,9,27,10],[26,17,27,18],[30,5,31,6],[30,13,31,14],[30,21,31,22],[36,13,37,14],[40,9,41,10],[40,17,41,18],[44,5,45,6],[44,13,45,14],[1,1,2,27],[8,13,9,14],[12,9,13,10],[12,17,13,18],[16,5,17,6],[16,13,17,14],[16,21,17,22]]}
[]
[null,"Triangle Puzzles (Level 2/3)"]
[]
[]
[null,"The corner values add to give the centre value."]
[]
[null,"Can you complete the triangles."]
[]
[null,null,null,null,null,null,null,null,null,null,null,null,null,{"$f":"AG9","v":-1},null,null,null,null,null,null,null,null,null,null,null,null,null,null,null,null,null,null,{"$f":"ROUND(RAND()*(50-(-50))+(-50),0)","v":-1}]
[null,null,null,null,null,null,null,null,null,null,null,null,null,null,null,null,null,null,null,null,null,null,null,null,null,null,null,null,null,null,null,null,{"$f":"ROUND(RAND()*(50-(-50))+(-50),0)","v":37},{"$f":"AG9+AG11","v":-2}]
[null,null,null,null,null,null,null,null,null,null,null,null,null,null,null,null,null,null,null,null,null,null,null,null,null,null,null,null,null,null,null,null,-1,{"$f":"AG10+AG11","v":36}]
[null,null,null,null,null,null,null,null,null,null,null,null,null,null,null,null,null,null,null,null,null,null,null,null,null,null,null,null,null,null,null,null,null,{"$f":"AG9+AG10","v":36}]
[]
[]
[]
[]
[null,null,null,null,null,{"$f":"AG10","v":37},null,null,null,null,null,null,null,null,null,null,null,null,null,null,null,{"$f":"AG11","v":-1}]
[]
[]
[]
[]
[]
[null,null,null,null,null,null,null,null,null,null,null,null,null,null,null,null,null,null,null,null,null,null,null,null,null,null,null,null,null,null,null,null,{"$f":"ROUND(RAND()*(50-(-50))+(-50),0)","v":38}]
[null,null,null,null,null,null,null,null,null,null,null,null,null,null,null,null,null,null,null,null,null,null,null,null,null,null,null,null,null,null,null,null,{"$f":"ROUND(RAND()*(50-(-50))+(-50),0)","v":27},{"$f":"AG23+AG25","v":-4}]
[null,null,null,null,null,null,null,null,null,null,null,null,null,null,null,null,null,null,null,null,null,null,null,null,null,null,null,null,null,null,null,null,-42,{"$f":"AG24+AG25","v":-15}]
[null,null,null,null,null,null,null,null,null,null,null,null,null,null,null,null,null,null,null,null,null,null,null,null,null,null,null,null,null,null,null,null,null,{"$f":"AG23+AG24","v":65}]
[null,null,null,null,null,null,null,null,null,{"$f":"AH26","v":65},null,null,null,null,null,null,null,{"$f":"AH24","v":-4}]
[]
[]
[]
[null,null,null,null,null,{"$f":"AG24","v":27}]
[]
[]
[]
[]
[]
[null,null,null,null,null,null,null,null,null,null,null,null,null,null,null,null,null,null,null,null,null,null,null,null,null,null,null,null,null,null,null,null,{"$f":"ROUND(RAND()*(50-(-50))+(-50),0)","v":25}]
[null,null,null,null,null,null,null,null,null,null,null,null,null,null,null,null,null,null,null,null,null,null,null,null,null,null,null,null,null,null,null,null,{"$f":"ROUND(RAND()*(50-(-50))+(-50),0)","v":12},{"$f":"AG37+AG39","v":-8}]
[null,null,null,null,null,null,null,null,null,null,null,null,null,null,null,null,null,null,null,null,null,null,null,null,null,null,null,null,null,null,null,null,-33,{"$f":"AG38+AG39","v":-21}]
[null,null,null,null,null,null,null,null,null,null,null,null,null,null,null,null,null,null,null,null,null,null,null,null,null,null,null,null,null,null,null,null,null,{"$f":"AG38+AG37","v":37}]
[null,null,null,null,null,null,null,null,null,{"$f":"AH40","v":37},null,null,null,null,null,null,null,{"$f":"AH38","v":-8}]
[]
[]
[]
[null,null,null,null,null,null,null,null,null,null,null,null,null,{"$f":"AH39","v":-21}]

{"sheet":"Sub Neg","index":4,"n_rows":45,"n_cols":34,"rows_kept":45,"cut":false,"hidden":false,"merged":[[44,21,45,22],[22,13,23,14],[26,9,27,10],[26,17,27,18],[30,5,31,6],[30,13,31,14],[30,21,31,22],[36,13,37,14],[40,9,41,10],[40,17,41,18],[44,5,45,6],[44,13,45,14],[1,1,2,27],[8,13,9,14],[12,9,13,10],[12,17,13,18],[16,5,17,6],[16,13,17,14],[16,21,17,22]]}
[]
[null,"Triangle Puzzles (Level 2/3)"]
[]
[]
[null,"The corner values subtract to give the centre value."]
[]
[null,"Can you complete the triangles."]
[]
[null,null,null,null,null,null,null,null,null,null,null,null,null,{"$f":"AG9","v":-9},null,null,null,null,null,null,null,null,null,null,null,null,null,null,null,null,null,null,{"$f":"ROUND(RAND()*(50-(-50))+(-50),0)","v":-9}]
[null,null,null,null,null,null,null,null,null,null,null,null,null,null,null,null,null,null,null,null,null,null,null,null,null,null,null,null,null,null,null,null,{"$f":"ROUND(RAND()*(50-(-50))+(-50),0)","v":33},{"$f":"AG9-AG11","v":21}]
[null,null,null,null,null,null,null,null,null,null,null,null,null,null,null,null,null,null,null,null,null,null,null,null,null,null,null,null,null,null,null,null,-30,{"$f":"AG10-AG11","v":63}]
[null,null,null,null,null,null,null,null,null,null,null,null,null,null,null,null,null,null,null,null,null,null,null,null,null,null,null,null,null,null,null,null,null,{"$f":"AG9-AG10","v":-42}]
[]
[]
[]
[]
[null,null,null,null,null,{"$f":"AG10","v":33},null,null,null,null,null,null,null,null,null,null,null,null,null,null,null,{"$f":"AG11","v":-30}]
[]
[]
[]
[]
[]
[null,null,null,null,null,null,null,null,null,null,null,null,null,null,null,null,null,null,null,null,null,null,null,null,null,null,null,null,null,null,null,null,{"$f":"ROUND(RAND()*(13-(-13))+(-13),0)","v":1}]
[null,null,null,null,null,null,null,null,null,null,null,null,null,null,null,null,null,null,null,null,null,null,null,null,null,null,null,null,null,null,null,null,{"$f":"ROUND(RAND()*(13-(-13))+(-13),0)","v":-13},{"$f":"AG23-AG25","v":11}]
[null,null,null,null,null,null,null,null,null,null,null,null,null,null,null,null,null,null,null,null,null,null,null,null,null,null,null,null,null,null,null,null,-10,{"$f":"AG24-AG25","v":-3}]
[null,null,null,null,null,null,null,null,null,null,null,null,null,null,null,null,null,null,null,null,null,null,null,null,null,null,null,null,null,null,null,null,null,{"$f":"AG23-AG24","v":14}]
[null,null,null,null,null,null,null,null,null,{"$f":"AH26","v":14},null,null,null,null,null,null,null,{"$f":"AH24","v":11}]
[]
[]
[]
[null,null,null,null,null,{"$f":"AG24","v":-13}]
[]
[]
[]
[]
[]
[null,null,null,null,null,null,null,null,null,null,null,null,null,null,null,null,null,null,null,null,null,null,null,null,null,null,null,null,null,null,null,null,{"$f":"ROUND(RAND()*(13-(-13))+(-13),0)","v":6}]
[null,null,null,null,null,null,null,null,null,null,null,null,null,null,null,null,null,null,null,null,null,null,null,null,null,null,null,null,null,null,null,null,{"$f":"ROUND(RAND()*(13-(-13))+(-13),0)","v":-2},{"$f":"AG37+AG39","v":15}]
[null,null,null,null,null,null,null,null,null,null,null,null,null,null,null,null,null,null,null,null,null,null,null,null,null,null,null,null,null,null,null,null,9,{"$f":"AG38+AG39","v":7}]
[null,null,null,null,null,null,null,null,null,null,null,null,null,null,null,null,null,null,null,null,null,null,null,null,null,null,null,null,null,null,null,null,null,{"$f":"AG38+AG37","v":4}]
[null,null,null,null,null,null,null,null,null,{"$f":"AH40","v":4},null,null,null,null,null,null,null,{"$f":"AH38","v":15}]
[]
[]
[]
[null,null,null,null,null,null,null,null,null,null,null,null,null,{"$f":"AH39","v":7}]

{"sheet":"Mul Neg","index":5,"n_rows":45,"n_cols":34,"rows_kept":45,"cut":false,"hidden":false,"merged":[[44,21,45,22],[22,13,23,14],[26,9,27,10],[26,17,27,18],[30,5,31,6],[30,13,31,14],[30,21,31,22],[36,13,37,14],[40,9,41,10],[40,17,41,18],[44,5,45,6],[44,13,45,14],[1,1,2,27],[8,13,9,14],[12,9,13,10],[12,17,13,18],[16,5,17,6],[16,13,17,14],[16,21,17,22]]}
[]
[null,"Triangle Puzzles (Level 2/3)"]
[]
[]
[null,"The corner values multiply to give the centre value."]
[]
[null,"Can you complete the triangles."]
[]
[null,null,null,null,null,null,null,null,null,null,null,null,null,{"$f":"AG9","v":-12},null,null,null,null,null,null,null,null,null,null,null,null,null,null,null,null,null,null,{"$f":"ROUND(RAND()*(13-(-13))+(-13),0)","v":-12}]
[null,null,null,null,null,null,null,null,null,null,null,null,null,null,null,null,null,null,null,null,null,null,null,null,null,null,null,null,null,null,null,null,{"$f":"ROUND(RAND()*(13-(-13))+(-13),0)","v":-3},{"$f":"AG9*AG11","v":24}]
[null,null,null,null,null,null,null,null,null,null,null,null,null,null,null,null,null,null,null,null,null,null,null,null,null,null,null,null,null,null,null,null,-2,{"$f":"AG10*AG11","v":6}]
[null,null,null,null,null,null,null,null,null,null,null,null,null,null,null,null,null,null,null,null,null,null,null,null,null,null,null,null,null,null,null,null,null,{"$f":"AG9*AG10","v":36}]
[]
[]
[]
[]
[null,null,null,null,null,{"$f":"AG10","v":-3},null,null,null,null,null,null,null,null,null,null,null,null,null,null,null,{"$f":"AG11","v":-2}]
[]
[]
[]
[]
[]
[null,null,null,null,null,null,null,null,null,null,null,null,null,null,null,null,null,null,null,null,null,null,null,null,null,null,null,null,null,null,null,null,{"$f":"ROUND(RAND()*(13-(-13))+(-13),0)","v":-7}]
[null,null,null,null,null,null,null,null,null,null,null,null,null,null,null,null,null,null,null,null,null,null,null,null,null,null,null,null,null,null,null,null,{"$f":"ROUND(RAND()*(13-(-13))+(-13),0)","v":10},{"$f":"AG23*AG25","v":-49}]
[null,null,null,null,null,null,null,null,null,null,null,null,null,null,null,null,null,null,null,null,null,null,null,null,null,null,null,null,null,null,null,null,7,{"$f":"AG24*AG25","v":70}]
[null,null,null,null,null,null,null,null,null,null,null,null,null,null,null,null,null,null,null,null,null,null,null,null,null,null,null,null,null,null,null,null,null,{"$f":"AG23*AG24","v":-70}]
[null,null,null,null,null,null,null,null,null,{"$f":"AH26","v":-70},null,null,null,null,null,null,null,{"$f":"AH24","v":-49}]
[]
[]
[]
[null,null,null,null,null,{"$f":"AG24","v":10}]
[]
[]
[]
[]
[]
[null,null,null,null,null,null,null,null,null,null,null,null,null,null,null,null,null,null,null,null,null,null,null,null,null,null,null,null,null,null,null,null,{"$f":"ROUND(RAND()*(13-(-13))+(-13),0)","v":3}]
[null,null,null,null,null,null,null,null,null,null,null,null,null,null,null,null,null,null,null,null,null,null,null,null,null,null,null,null,null,null,null,null,{"$f":"ROUND(RAND()*(13-(-13))+(-13),0)","v":6},{"$f":"AG37*AG39","v":21}]
[null,null,null,null,null,null,null,null,null,null,null,null,null,null,null,null,null,null,null,null,null,null,null,null,null,null,null,null,null,null,null,null,7,{"$f":"AG38*AG39","v":42}]
[null,null,null,null,null,null,null,null,null,null,null,null,null,null,null,null,null,null,null,null,null,null,null,null,null,null,null,null,null,null,null,null,null,{"$f":"AG38*AG37","v":18}]
[null,null,null,null,null,null,null,null,null,{"$f":"AH40","v":18},null,null,null,null,null,null,null,{"$f":"AH38","v":21}]
[]
[]
[]
[null,null,null,null,null,null,null,null,null,null,null,null,null,{"$f":"AH39","v":42}]